bitfinex/quotes_SOLUSD_20250719
["timestamp","ask_amount","ask_price","bid_price","bid_amount"]
[1752885018516,0.06,177.32,177.28,17.44468397]
[1752885018721,0.06,177.32,177.28,22.65253959]
[1752885019018,0.72,177.32,177.28,22.65253959]
[1752885019212,5.26785562,177.32,177.28,17.44468397]
[1752885019530,0.72,177.32,177.28,22.65253959]
[1752885020024,6.35958789,177.32,177.28,22.65253959]
[1752885020225,11.56744351,177.32,177.28,22.65253959]
[1752885020400,6.35958789,177.32,177.28,17.44468397]
[1752885020588,0.06,177.32,177.29,0.66]
[1752885020797,0.06,177.32,177.27,16.78468397]
[1752885021021,0.06,177.32,177.3,0.66]
[1752885021217,0.06,177.32,177.29,0.66]
[1752885021607,0.72,177.32,177.29,0.66]
[1752885021808,11.56742101,177.32,177.29,0.66]
[1752885023723,5.69956539,177.32,177.3,0.66]
[1752885024602,5.69956539,177.32,177.28,0.66]
[1752885024906,10.90742101,177.32,177.27,5.23785562]
[1752885025218,6.35956539,177.32,177.29,0.66]
[1752885025423,11.56742101,177.32,177.29,0.66]
[1752885025720,11.56742101,177.32,177.27,5.89785562]
[1752885025909,6.35956539,177.32,177.28,0.66]
[1752885026227,11.56742101,177.32,177.28,0.66]
[1752885026809,5.69956539,177.32,177.29,0.66]
[1752885027014,0.06,177.32,177.3,17.44468397]
[1752885027398,5.69957638,177.32,177.3,17.44468397]
[1752885027614,5.69957638,177.32,177.29,16.78468397]
[1752885028018,0.06,177.32,177.29,17.44468397]
[1752885028801,10.90749577,177.32,177.29,17.44468397]
[1752885029001,11.56749577,177.32,177.29,16.78468397]
[1752885029616,10.90749577,177.32,177.29,17.44468397]
[1752885031017,11.56749577,177.32,177.29,17.44468397]
[1752885031329,11.56749577,177.32,177.28,16.78468397]
[1752885031628,11.56749577,177.32,177.29,16.78468397]
[1752885031830,6.35964015,177.32,177.29,16.78468397]
[1752885032012,11.56749577,177.32,177.29,16.78468397]
[1752885032420,11.56749577,177.32,177.29,17.44468397]
[1752885033497,10.90749577,177.32,177.29,17.44468397]
[1752885034204,5.86785562,177.31,177.28,16.78468397]
[1752885034618,5.86785562,177.31,177.28,0.66]
[1752885035129,10.90749577,177.32,177.29,16.78468397]
[1752885035302,10.90749577,177.32,177.28,0.66]
[1752885035505,11.56749577,177.32,177.29,16.78468397]
[1752885035717,25.66630019,177.32,177.29,16.78468397]
[1752885036814,5.20785562,177.31,177.27,0.03]
[1752885037147,5.20785562,177.29,177.27,0.03]
[1752885037518,5.64079422,177.28,177.27,0.03]
[1752885038627,5.64047605,177.29,177.27,0.03]
[1752885039124,6.36047605,177.29,177.27,0.03]
[1752885039335,5.64047605,177.29,177.27,0.03]
[1752885040905,5.64015792,177.3,177.27,0.03]
[1752885041105,11.56801354,177.3,177.27,0.03]
[1752885041432,0.72,177.29,177.27,0.03]
[1752885042131,5.64079422,177.28,177.27,0.03]
[1752885045953,5.64047605,177.29,177.27,0.03]
[1752885046536,6.36047605,177.29,177.27,0.03]
[1752885047353,5.64047605,177.29,177.27,0.03]
[1752885048854,6.36047605,177.29,177.27,0.03]
[1752885052539,4.05245685,177.28,177.27,0.03]
[1752885053957,9.69325107,177.28,177.27,0.03]
[1752885054862,6.36079422,177.28,177.27,0.03]
[1752885055052,9.69325107,177.28,177.27,0.03]
[1752885055557,5.64079422,177.28,177.27,0.03]
[1752885056445,6.36079422,177.28,177.27,0.03]
[1752885056643,5.64079422,177.28,177.27,0.03]
[1752885059450,5.92731395,177.29,177.27,0.03]
[1752885059451,5.64047605,177.29,177.27,0.03]
[1752885059656,6.36047605,177.29,177.27,0.03]
[1752885060945,6.36079422,177.28,177.27,0.03]
[1752885063946,55.51880442,177.32,177.27,0.03]
[1752885063947,0.06,177.32,177.27,0.03]
[1752885064142,0.06,177.32,177.28,17.34876339]
[1752885064345,0.06,177.32,177.31,5.20731395]
[1752885064552,0.06,177.32,177.31,0.56398398]
[1752885064743,0.06,177.32,177.31,5.86731395]
[1752885065775,0.06,177.32,177.31,22.65199792]
[1752885066656,0.06,177.32,177.31,63.95199792]
[1752885068444,0.06,177.32,177.31,69.59183774]
[1752885068865,0.06,177.35,177.32,16.78468397]
[1752885069070,0.1,177.37,177.34,21.99199792]
[1752885069275,0.06,177.39,177.36,18.39398397]
[1752885069492,0.06,177.39,177.38,21.99199792]
[1752885069778,0.06,177.39,177.35,5.20731395]
[1752885069779,5.69729635,177.39,177.35,5.20731395]
[1752885069980,5.20731395,177.38,177.35,41.26]
[1752885070352,0.71,177.37,177.35,41.26]
[1752885070761,5.91731395,177.37,177.35,41.26]
[1752885070974,0.71,177.36,177.35,41.26]
[1752885072078,5.91731395,177.36,177.35,41.26]
[1752885072983,6.34824988,177.36,177.35,41.26]
[1752885076475,5.63824988,177.36,177.35,41.26]
[1752885076676,11.55524595,177.37,177.35,41.26]
[1752885077579,6.347932,177.37,177.35,41.26]
[1752885077891,11.55524595,177.37,177.35,41.26]
[1752885079358,5.91731395,177.36,177.35,41.26]
[1752885080396,5.91731395,177.36,177.29,16.78468397]
[1752885080553,5.20731395,177.33,177.31,16.78468397]
[1752885080881,11.55683571,177.32,177.31,16.78468397]
[1752885081464,11.55683571,177.32,177.3,41.06]
[1752885081666,5.91731395,177.31,177.3,41.06]
[1752885082184,5.91731395,177.31,177.27,0.03]
[1752885082387,20.44832618,177.32,177.27,41.09]
[1752885082677,5.20731395,177.31,177.27,41.76]
[1752885082980,5.64015792,177.3,177.27,41.76]
[1752885083491,10.84747187,177.3,177.27,41.76]
[1752885083661,5.64015792,177.3,177.27,41.76]
[1752885083862,5.64015792,177.3,177.28,16.78468397]
[1752885084172,5.64015792,177.3,177.28,17.45468397]
[1752885084781,5.64015792,177.3,177.28,16.78468397]
[1752885084975,5.20731395,177.29,177.28,16.78468397]
[1752885085288,10.84747187,177.3,177.28,16.78468397]
[1752885085590,5.64015792,177.3,177.28,17.45468397]
[1752885085769,10.84747187,177.3,177.28,16.78468397]
[1752885085976,5.64079422,177.28,177.27,0.03]
[1752885086185,10.84810817,177.28,177.27,41.05]
[1752885086368,11.55810817,177.28,177.27,41.05]
[1752885086771,5.64079422,177.28,177.27,41.05]
[1752885087071,5.20731395,177.29,177.27,41.05]
[1752885087072,5.64054532,177.29,177.27,41.72]
[1752885088207,10.84753742,177.3,177.27,41.05]
[1752885088376,5.64022347,177.3,177.28,0.67]
[1752885088686,5.64022347,177.3,177.28,17.45468397]
[1752885089070,5.63991639,177.31,177.28,17.45468397]
[1752885089268,10.84723034,177.31,177.29,0.67]
[1752885089471,10.84651769,177.33,177.3,41.65]
[1752885089988,5.20731395,177.33,177.3,41.65]
[1752885091085,10.84651769,177.33,177.3,41.65]
[1752885091294,10.84706815,177.32,177.3,41.65]
[1752885092595,5.6397542,177.32,177.3,41.65]
[1752885092897,10.84706815,177.32,177.3,41.65]
[1752885094892,10.84706815,177.32,177.3,40.98]
[1752885095088,5.20731395,177.31,177.3,40.98]
[1752885096396,10.84715377,177.31,177.3,40.98]
[1752885096895,5.20731395,177.31,177.3,40.98]
[1752885097082,5.63959799,177.32,177.3,40.98]
[1752885097397,10.84691194,177.32,177.3,40.98]
[1752885097697,26.0,177.35,177.31,17.49468397]
[1752885098001,26.0,177.35,177.32,40.88]
[1752885098002,10.84628697,177.34,177.32,40.88]
[1752885098184,10.84628697,177.34,177.32,41.59]
[1752885098380,10.84628697,177.34,177.32,40.88]
[1752885099798,5.63897302,177.34,177.32,40.88]
[1752885099972,10.84628697,177.34,177.32,40.88]
[1752885100483,5.20731395,177.35,177.33,0.71]
[1752885100674,0.66,177.36,177.34,40.84]
[1752885100878,5.20731395,177.35,177.34,40.84]
[1752885101076,5.86731395,177.35,177.34,40.84]
[1752885101707,5.20731395,177.35,177.34,40.84]
[1752885102003,5.86731395,177.35,177.34,40.84]
[1752885102371,0.66,177.35,177.34,40.84]
[1752885102575,5.86731395,177.35,177.34,40.84]
[1752885104397,11.50588175,177.35,177.34,40.84]
[1752885105989,25.60230125,177.35,177.32,40.86]
[1752885106187,5.20731395,177.33,177.32,40.86]
[1752885106489,5.86731395,177.33,177.32,40.86]
[1752885106901,5.86731395,177.33,177.32,37.36]
[1752885107104,11.50651769,177.33,177.32,37.36]
[1752885111111,25.60452705,177.33,177.29,40.78]
[1752885111308,5.20731395,177.3,177.29,40.78]
[1752885111522,5.86731395,177.3,177.29,40.78]
[1752885111697,0.66,177.3,177.29,40.78]
[1752885112021,5.20731395,177.3,177.29,40.78]
[1752885112182,10.84747187,177.3,177.29,40.78]
[1752885116314,5.64015792,177.3,177.29,40.78]
[1752885116604,10.84747187,177.3,177.29,40.78]
[1752885117104,5.64015792,177.3,177.29,40.78]
[1752885117406,5.63952176,177.32,177.3,16.78468397]
[1752885117592,5.63952176,177.32,177.31,0.71]
[1752885119101,5.20731395,177.33,177.31,0.71]
[1752885119302,5.20731395,177.33,177.32,40.86]
[1752885120994,10.84651769,177.33,177.32,40.86]
[1752885123632,5.63888575,177.34,177.32,40.86]
[1752885123836,5.20731395,177.33,177.32,40.86]
[1752885124211,5.86731395,177.33,177.32,40.86]
[1752885124413,0.66,177.33,177.32,40.86]
[1752885124751,5.86731395,177.33,177.32,40.86]
[1752885125305,5.63888575,177.34,177.32,40.86]
[1752885125624,5.20731395,177.33,177.32,41.57]
[1752885125801,10.84651769,177.33,177.32,41.57]
[1752885126204,10.84651769,177.33,177.32,40.86]
[1752885126411,5.63920374,177.33,177.32,41.52]
[1752885127713,10.8461997,177.34,177.32,41.52]
[1752885128423,5.63888575,177.34,177.32,41.52]
[1752885128606,10.8461997,177.34,177.32,41.52]
[1752885131309,10.84588175,177.35,177.33,17.44468397]
[1752885131510,0.06,177.37,177.35,16.78468397]
[1752885131727,0.06,177.39,177.37,16.78468397]
[1752885131938,0.1,177.42,177.39,16.78468397]
[1752885132114,0.1,177.42,177.41,21.99199792]
[1752885132311,0.1,177.42,177.41,17.44468397]
[1752885132519,0.1,177.42,177.41,58.72468397]
[1752885132717,5.73634314,177.42,177.41,58.72468397]
[1752885132929,5.73634314,177.42,177.36,1.6229]
[1752885132930,10.94365709,177.42,177.36,1.6229]
[1752885133237,5.20731395,177.37,177.33,16.78468397]
[1752885133437,6.32824988,177.36,177.34,41.28]
[1752885133740,5.63824988,177.36,177.34,41.28]
[1752885134513,5.20731395,177.35,177.34,41.28]
[1752885135527,10.84588175,177.35,177.34,41.28]
[1752885140230,11.53588175,177.35,177.34,41.28]
[1752885140429,11.53588175,177.35,177.32,0.03]
[1752885140641,5.20731395,177.33,177.32,0.03]
[1752885140832,5.20731395,177.33,177.32,41.19]
[1752885141127,5.89731395,177.33,177.32,41.19]
[1752885141541,11.53651769,177.33,177.32,41.19]
[1752885146743,6.32920374,177.33,177.32,41.19]
[1752885146920,10.84651769,177.33,177.32,41.19]
[1752885149533,19.73387459,177.36,177.32,41.19]
[1752885149855,5.20731395,177.33,177.32,41.19]
[1752885151454,20.42387459,177.36,177.32,41.85]
[1752885151655,5.20731395,177.35,177.32,41.85]
[1752885152154,5.20731395,177.35,177.33,0.66]
[1752885152358,5.20731395,177.35,177.34,41.12]
[1752885152554,10.84588175,177.35,177.34,41.12]
[1752885152740,5.6385678,177.35,177.34,41.12]
[1752885152941,10.84588175,177.35,177.34,41.12]
[1752885154556,19.73387459,177.36,177.34,41.12]
[1752885154860,5.20731395,177.35,177.34,41.12]
[1752885155736,10.84588175,177.35,177.34,41.12]
[1752885157355,5.6385678,177.35,177.34,41.12]
[1752885157872,5.6385678,177.35,177.34,58.57468397]
[1752885158960,5.637932,177.37,177.35,16.78468397]
[1752885159159,5.637932,177.37,177.36,41.06]
[1752885159550,10.84524595,177.37,177.36,41.06]
[1752885160358,11.55524595,177.37,177.36,41.06]
[1752885160559,5.637932,177.37,177.36,41.73]
[1752885160749,5.637932,177.37,177.36,41.06]
[1752885161540,11.55524595,177.37,177.36,41.06]
[1752885162464,5.637932,177.37,177.36,57.84468397]
[1752885162647,5.637932,177.37,177.36,58.51468397]
[1752885163246,5.637932,177.37,177.36,57.84468397]
[1752885163446,11.55524595,177.37,177.36,41.06]
[1752885163648,10.84524595,177.37,177.36,41.06]
[1752885165160,5.637932,177.37,177.36,57.84468397]
[1752885165570,5.637932,177.37,177.36,58.51468397]
[1752885165758,5.637932,177.37,177.36,57.84468397]
[1752885166168,10.84524595,177.37,177.36,57.84468397]
[1752885167302,5.69761416,177.38,177.36,57.84468397]
[1752885167460,5.20731395,177.37,177.36,57.84468397]
[1752885168057,5.69761416,177.38,177.36,57.84468397]
[1752885168571,5.20731395,177.37,177.36,57.84468397]
[1752885168882,5.69761416,177.38,177.36,58.51468397]
[1752885169179,5.20731395,177.37,177.36,57.84468397]
[1752885169476,10.84524595,177.37,177.36,57.84468397]
[1752885170054,5.637932,177.37,177.36,57.84468397]
[1752885170377,10.84524595,177.37,177.36,57.84468397]
[1752885170560,5.69761416,177.38,177.37,16.78468397]
[1752885170877,5.69761416,177.38,177.37,58.35468397]
[1752885172774,0.06,177.38,177.37,58.35468397]
[1752885175464,0.06,177.38,177.37,17.45468397]
[1752885175764,5.97731395,177.38,177.32,16.81468397]
[1752885175972,0.71,177.37,177.36,0.03]
[1752885176171,5.91731395,177.37,177.36,0.03]
[1752885176371,5.91731395,177.37,177.32,0.03]
[1752885176689,0.71,177.36,177.33,40.82]
[1752885176885,5.6385678,177.35,177.33,40.82]
[1752885177181,0.71,177.34,177.33,40.82]
[1752885177481,0.71,177.34,177.32,0.03]
[1752885177667,5.20731395,177.33,177.32,0.03]
[1752885178186,5.91731395,177.33,177.32,0.03]
[1752885178879,11.55651769,177.33,177.32,0.03]
[1752885180281,6.34920374,177.33,177.32,0.03]
[1752885180469,11.55651769,177.33,177.32,0.03]
[1752885182064,25.65452705,177.33,177.28,0.03]
[1752885182260,5.20731395,177.29,177.28,0.03]
[1752885182774,5.91731395,177.29,177.28,0.03]
[1752885183990,11.55779,177.29,177.28,0.03]
[1752885189390,11.55779,177.29,177.27,1e-08]
[1752885189695,5.88731395,177.28,177.27,1e-08]
[1752885190295,11.52810817,177.28,177.27,1e-08]
[1752885190672,18.02480817,177.28,177.27,1e-08]
[1752885191691,22.54508349,177.28,177.27,1e-08]
[1752885195574,22.54508349,177.28,177.23,0.03]
[1752885195575,26.0,177.25,177.23,0.03]
[1752885195893,5.20731395,177.24,177.19,0.03]
[1752885196198,5.20731395,177.2,177.19,0.03]
[1752885196392,26.68,177.23,177.19,0.03]
[1752885196696,0.68,177.23,177.19,0.03]
[1752885197002,5.20731395,177.22,177.19,0.7]
[1752885197322,5.20731395,177.21,177.19,0.03]
[1752885197695,5.64334085,177.2,177.19,0.03]
[1752885199291,5.64334085,177.2,177.19,0.7]
[1752885199812,5.64270398,177.22,177.19,0.7]
[1752885199996,5.64270398,177.22,177.2,0.67]
[1752885200482,5.64270398,177.22,177.19,0.03]
[1752885200684,5.64270398,177.22,177.19,0.7]
[1752885200901,5.20731395,177.22,177.19,0.7]
[1752885203288,5.6430224,177.21,177.2,16.78468397]
[1752885204597,5.64270398,177.22,177.2,16.78468397]
[1752885205195,5.64270398,177.22,177.2,17.45468397]
[1752885208086,5.64270398,177.22,177.21,0.67]
[1752885208687,5.64174894,177.25,177.21,17.45468397]
[1752885208889,5.64174894,177.25,177.23,5.20731395]
[1752885209298,5.64174894,177.25,177.24,0.67]
[1752885209482,14.10406845,177.26,177.24,0.67]
[1752885209682,14.10406845,177.26,177.25,40.52]
[1752885211004,5.64111242,177.27,177.25,46.39731395]
[1752885211203,5.64111242,177.27,177.26,21.99199792]
[1752885211392,5.64111242,177.27,177.26,22.66199792]
[1752885211591,5.64015792,177.3,177.26,22.66199792]
[1752885211895,5.64015792,177.3,177.27,0.67]
[1752885212095,5.64015792,177.3,177.28,40.58]
[1752885213805,11.52747187,177.3,177.28,40.58]
[1752885214311,14.37145552,177.3,177.28,40.58]
[1752885214897,11.52747187,177.3,177.28,40.58]
[1752885215107,6.32015792,177.3,177.28,40.58]
[1752885216298,11.52747187,177.3,177.28,40.58]
[1752885218709,5.20731395,177.29,177.28,40.58]
[1752885218912,5.89731395,177.29,177.21,1.6564]
[1752885219101,5.20731395,177.23,177.21,16.78468397]
[1752885219412,5.89731395,177.23,177.22,40.5]
[1752885219915,11.53969955,177.23,177.22,40.5]
[1752885220688,11.53969955,177.23,177.22,40.53]
[1752885222017,10.84969955,177.23,177.22,40.53]
[1752885222919,5.6423856,177.23,177.22,40.53]
[1752885226721,6.3323856,177.23,177.22,40.53]
[1752885226914,11.53969955,177.23,177.22,40.53]
[1752885227119,10.84969955,177.23,177.22,40.53]
[1752885227412,5.6423856,177.23,177.22,40.53]
[1752885229528,6.3323856,177.23,177.22,40.53]
[1752885230222,5.6423856,177.23,177.22,40.53]
[1752885233406,5.20731395,177.24,177.22,41.2]
[1752885233728,5.20731395,177.24,177.22,40.53]
[1752885233936,5.89731395,177.24,177.22,40.53]
[1752885234538,19.745705,177.26,177.22,40.53]
[1752885234701,5.20731395,177.24,177.22,41.2]
[1752885234997,5.20731395,177.24,177.22,40.53]
[1752885235528,5.6423856,177.23,177.22,40.53]
[1752885236531,10.8493812,177.24,177.22,40.53]
[1752885236714,11.5393812,177.24,177.22,40.53]
[1752885238026,6.3323856,177.23,177.22,40.53]
[1752885238330,5.6423856,177.23,177.22,40.53]
[1752885238515,11.53969955,177.23,177.22,40.53]
[1752885240036,6.3323856,177.23,177.22,40.53]
[1752885240228,11.53969955,177.23,177.22,40.53]
[1752885240437,10.84969955,177.23,177.22,40.53]
[1752885243933,11.53969955,177.23,177.22,0.03]
[1752885244634,11.53969955,177.23,177.21,40.3]
[1752885244934,5.89731395,177.22,177.19,40.35]
[1752885245133,5.20731395,177.2,177.19,40.35]
[1752885245441,5.89731395,177.2,177.19,40.35]
[1752885245931,11.5406548,177.2,177.19,40.35]
[1752885246105,11.5406548,177.2,177.19,0.03]
[1752885246717,37.5406548,177.2,177.19,0.03]
[1752885246912,32.33334085,177.2,177.19,0.03]
[1752885247212,37.5406548,177.2,177.19,0.03]
[1752885248137,42.74796875,177.2,177.18,0.2]
[1752885248436,5.91731395,177.19,177.18,0.2]
[1752885249930,11.56097329,177.19,177.18,0.2]
[1752885259641,6.35365934,177.19,177.18,0.2]
[1752885259842,11.56097329,177.19,177.18,0.2]
[1752885264645,11.62097329,177.19,177.18,0.2]
[1752885269039,9.75183811,177.19,177.18,0.2]
[1752885270443,5.70365934,177.19,177.18,0.87]
[1752885270643,5.70365934,177.19,177.18,0.2]
[1752885270855,9.75183811,177.19,177.18,0.2]
[1752885273844,9.75183811,177.19,177.14,0.2]
[1752885273845,26.0,177.17,177.14,0.2]
[1752885274046,29.33817877,177.17,177.14,0.2]
[1752885274246,30.04817877,177.17,177.14,0.2]
[1752885275049,37.57208984,177.17,177.14,0.2]
[1752885277560,5.21779341,177.15,177.14,0.2]
[1752885278175,5.87779341,177.15,177.14,0.2]
[1752885279267,11.52272708,177.15,177.14,0.2]
[1752885279645,26.0,177.13,177.12,0.2]
[1752885280051,26.66,177.13,177.12,0.2]
[1752885280569,31.87779341,177.13,177.12,0.2]
[1752885281147,36.38136812,177.13,177.12,0.2]
[1752885281344,42.02693916,177.13,177.12,1e-08]
[1752885282641,42.02693916,177.13,177.11,1e-08]
[1752885282642,37.52336445,177.13,177.11,1e-08]
[1752885282847,11.09558682,177.12,177.11,1e-08]
[1752885283044,26.0,177.1,177.09,0.2]
[1752885283368,26.0,177.07,177.05,1e-08]
[1752885283668,5.21779341,177.06,177.05,1e-08]
[1752885283865,5.87779341,177.06,177.05,1e-08]
[1752885284970,11.52559641,177.06,177.05,1e-08]
[1752885285466,11.52559641,177.06,177.04,1e-08]
[1752885285671,5.87779341,177.05,177.04,1e-08]
[1752885285858,31.21779341,177.02,177.01,0.03]
[1752885286374,31.87779341,177.02,177.01,0.03]
[1752885287054,37.52687261,177.02,177.01,0.03]
[1752885300374,71.36687261,177.02,177.01,0.03]
[1752885300677,31.6490792,177.02,177.01,0.03]
[1752885300877,31.6490792,177.02,177.01,0.7]
[1752885301061,36.86687261,177.02,177.01,0.03]
[1752885308176,37.54687261,177.02,177.01,0.03]
[1752885308685,5.6490792,177.02,177.01,0.03]
[1752885308885,5.6490792,177.02,177.01,0.7]
[1752885309086,11.54687261,177.02,177.01,0.03]
[1752885309785,10.86687261,177.02,177.01,0.03]
[1752885312879,5.6490792,177.02,177.01,0.03]
[1752885313084,5.6490792,177.02,177.01,0.7]
[1752885313867,5.6490792,177.02,177.01,0.03]
[1752885315395,31.64876009,177.03,177.01,0.03]
[1752885315964,36.8665535,177.03,177.01,0.03]
[1752885316582,31.64876009,177.03,177.02,0.67]
[1752885317895,31.64876009,177.03,177.01,0.7]
[1752885318697,36.8665535,177.03,177.01,0.03]
[1752885321090,31.64876009,177.03,177.01,0.03]
[1752885321397,31.64876009,177.03,177.02,0.67]
[1752885322183,5.64876009,177.03,177.02,0.67]
[1752885323073,5.70844103,177.04,177.02,0.67]
[1752885323893,5.70844103,177.04,177.01,0.03]
[1752885324096,5.70844103,177.04,177.01,0.7]
[1752885324390,0.06,177.04,177.01,0.7]
[1752885324599,0.06,177.04,177.01,5.91779341]
[1752885324802,0.06,177.04,177.02,0.67]
[1752885325293,0.06,177.04,177.01,5.24779341]
[1752885325484,0.06,177.04,177.03,0.67]
[1752885330689,0.06,177.04,177.02,0.03]
[1752885330891,0.06,177.04,177.02,0.7]
[1752885331085,0.06,177.04,177.02,0.03]
[1752885331706,0.68,177.03,177.02,0.03]
[1752885332896,6.32876009,177.03,177.02,0.03]
[1752885333699,5.64876009,177.03,177.02,0.03]
[1752885334981,5.70844103,177.04,177.02,0.03]
[1752885336486,6.40844103,177.04,177.02,0.03]
[1752885337103,11.63007535,177.04,177.02,0.03]
[1752885337888,5.70844103,177.04,177.02,0.03]
[1752885339101,6.40844103,177.04,177.02,0.03]
[1752885339985,5.92163432,177.03,177.02,0.03]
[1752885341483,11.57039441,177.03,177.02,0.03]
[1752885345182,43.75419441,177.03,177.02,0.03]
[1752885345384,26.0,177.02,177.01,0.03]
[1752885345583,31.92163432,177.02,177.01,0.03]
[1752885345809,26.7,177.02,177.01,0.03]
[1752885345999,37.57071352,177.02,177.01,0.03]
[1752885356796,77.97071352,177.02,177.01,0.03]
[1752885356995,76.09311348,177.02,177.01,0.03]
[1752885359632,76.09311348,177.02,176.94,0.03]
[1752885359633,8.1687,177.0,176.92,8.58808397]
[1752885359795,131.8373446,177.02,176.83,0.1]
[1752885359796,0.3691,176.92,176.83,0.1]
[1752885359996,0.3691,176.92,176.76,2.94972506]
[1752885359997,42.7201714,176.84,176.76,2.94972506]
[1752885360306,3.34403428,176.77,176.73,0.68]
[1752885360514,4.19071394,176.76,176.73,0.68]
[1752885360700,4.19071394,176.75,176.73,0.68]
[1752885361028,4.19071394,176.74,176.73,2.94622563]
[1752885361406,4.19071394,176.74,176.73,6.29025991]
[1752885361407,1.80411394,176.74,176.73,6.29025991]
[1752885361605,5.65647878,176.79,176.73,2.94622563]
[1752885361805,5.65647878,176.79,176.74,3.34403428]
[1752885362100,9.00051306,176.79,176.73,3.34403428]
[1752885362423,14.13743654,176.84,176.76,3.34403428]
[1752885362728,14.13743654,176.84,176.77,3.34403428]
[1752885362729,3.34403428,176.82,176.77,3.34403428]
[1752885362911,5.65514901,176.83,176.78,0.68]
[1752885363096,5.23496716,176.82,176.78,0.68]
[1752885363296,5.65514901,176.83,176.79,5.23496716]
[1752885363492,5.65514901,176.83,176.8,0.68]
[1752885363718,52.96713206,176.85,176.8,0.68]
[1752885363899,47.31231151,176.85,176.81,5.23496716]
[1752885364104,58.20187447,176.85,176.82,0.68]
[1752885364315,52.96690731,176.85,176.83,0.68]
[1752885364613,5.23496716,176.84,176.79,0.68]
[1752885364798,5.23496716,176.8,176.74,0.68]
[1752885365001,5.23496716,176.77,176.74,0.68]
[1752885365223,5.23496716,176.77,176.75,0.68]
[1752885365418,5.23496716,176.78,176.76,0.68]
[1752885365913,5.93496716,176.77,176.72,41.44]
[1752885366099,5.23496716,176.73,176.66,41.44]
[1752885366304,5.23496716,176.71,176.66,53.48326716]
[1752885366511,5.23496716,176.7,176.66,47.5583]
[1752885366722,5.23496716,176.7,176.67,0.69]
[1752885366920,5.23496716,176.68,176.66,6.1183]
[1752885367116,5.23496716,176.7,176.67,0.69]
[1752885367320,5.23496716,176.7,176.68,0.69]
[1752885367702,5.23496716,176.71,176.69,0.69]
[1752885368119,5.23496716,176.71,176.63,5.66154559]
[1752885368323,31.65866948,176.72,176.62,0.69]
[1752885368324,5.23496716,176.67,176.62,0.69]
[1752885368525,5.23496716,176.66,176.63,0.69]
[1752885369521,26.72,176.69,176.63,0.69]
[1752885369727,5.23496716,176.66,176.63,0.69]
[1752885370721,5.23496716,176.65,176.63,0.69]
[1752885370922,5.23496716,176.66,176.63,0.69]
[1752885372023,5.23496716,176.66,176.63,0.72]
[1752885372220,5.65998095,176.68,176.63,0.72]
[1752885372550,5.23496716,176.66,176.63,0.72]
[1752885372713,0.72,176.67,176.63,0.03]
[1752885373018,5.23496716,176.66,176.63,0.03]
[1752885373229,5.23496716,176.66,176.63,0.72]
[1752885373612,5.23496716,176.65,176.63,0.03]
[1752885374135,10.89591474,176.65,176.63,0.03]
[1752885374325,5.95496716,176.64,176.63,0.03]
[1752885374509,26.0,176.64,176.63,0.03]
[1752885374917,31.23496716,176.64,176.63,0.03]
[1752885375231,31.95496716,176.64,176.63,0.03]
[1752885375631,37.61619904,176.64,176.63,0.03]
[1752885375930,31.95496716,176.64,176.63,0.03]
[1752885376335,31.23496716,176.64,176.63,0.03]
[1752885376711,5.23496716,176.65,176.63,0.03]
[1752885376910,26.0,176.67,176.64,0.69]
[1752885377114,0.72,176.7,176.64,0.69]
[1752885377317,5.23496716,176.69,176.64,5.92496716]
[1752885377620,5.23496716,176.67,176.63,0.03]
[1752885378035,0.72,176.66,176.63,0.03]
[1752885378239,5.95496716,176.66,176.63,0.03]
[1752885378832,5.23496716,176.67,176.63,0.03]